Cogmind - Beta 13 *** ADVENTURER MODE // 2024.04.04 @ 22:13:30 Player: AnotherZach Result: Destroyed by ZT-ISB(R) with Subdweller Beam Cannon Performance ------------- Evolutions (0) 0 Regions Visited (2) 400 Robots Destroyed (23) 115 Value Destroyed (579) 579 Prototype IDs (1) 20 Alien Tech Used (0) 0 Bonus (-24) -24 TOTAL SCORE: 1090 Bonus ------- Friendly Fire -24 Cogmind --------- Core Integrity 0/250 Matter 21/500 Energy 159/180 System Corruption 0% Temperature Hot (262) Movement Rolling (110) Location -10/Subcaves Parts ------- > --- POWER (1) -------- Meta Core > --- PROPULSION (2+1) - Subdweller Monowheel (+) Subdweller Monowheel Subdweller Monowheel > --- UTILITY (2+1) ---- Large Storage Unit High-capacity Matter Pod (+) Subdweller Optics > --- WEAPON (2) ------- Barrage Gun > --- INVENTORY (15) --- Subdweller Power Source Subdweller Power Source Subdweller Monowheel Disposable Heat Sink Small Storage Unit Sensor Array Signal Interpreter Scrap Shield Subdweller Beam Cannon Battle Rifle Slug Cannon Grenade Launcher Grenade Launcher Grenade Launcher Peak State ------------ > --- POWER ------------ Meta Core > --- PROPULSION ------- Subdweller Monowheel Subdweller Monowheel Subdweller Monowheel > --- UTILITY ---------- Large Storage Unit High-capacity Matter Pod Subdweller Optics > --- WEAPON ----------- Barrage Gun Light Cannon Slug Cannon > --- INVENTORY -------- Subdweller Power Source Subdweller Power Source Subdweller Monowheel Small Storage Unit Sensor Array Signal Interpreter Scrap Shield Subdweller Beam Cannon Battle Rifle Grenade Launcher Grenade Launcher Grenade Launcher Mining Laser Flamer [Rating: 33] Favorites ----------- Power Ion Engine Engine Ion Engine Power Core Meta Core Propulsion Aluminum Leg Treads Light Treads Leg Aluminum Leg Wheel Subdweller Monowheel Utility Large Storage Unit Device Improved Terrain Scanner Storage Large Storage Unit Weapon Assault Rifle Energy Gun Medium Laser Ballistic Gun Assault Rifle Ballistic Cannon Light Cannon Launcher Grenade Launcher Special Weapon Mining Laser Build | -11 -10 -10 ------- Run | Yrd Mat Sub Slots Evolved . | . . . Power . | . . . Propulsion . | . . . Utility . | . . . Weapon . | . . . Parts Attached 46 | 8 10 28 Power 5 | 1 1 3 Engine 4 | 1 1 2 Core 1 | . . 1 Reactor . | . . . Propulsion 10 | 2 4 4 Treads 1 | . 1 . Leg 6 | 2 3 1 Wheel 3 | . . 3 Hover . | . . . Flight . | . . . Utility 9 | 3 2 4 Device 5 | 2 . 3 Storage 4 | 1 2 1 Processor . | . . . Hackware . | . . . Protection . | . . . Artifact . | . . . Weapon 22 | 2 3 17 Energy Gun 2 | 2 . . Energy Cannon . | . . . Ballistic Gun 4 | . 1 3 Ballistic Cannon 6 | . . 6 Launcher 2 | . . 2 Special Weapon 8 | . 2 6 Impact Weapon . | . . . Slashing Weapon . | . . . Piercing Weapon . | . . . Special Melee Weapon . | . . . Unidentified Prototypes 1 | . . 1 Parts Lost 6 | . 1 5 Power 1 | . 1 . Propulsion 1 | . . 1 Utility 1 | . . 1 Weapon 3 | . . 3 Highest Loss Streak 3 | . 1 3 To Critical Strikes 1 | . . 1 Average Slot Usage (%) 97 | . 99 94 Engine 9 | . 13 5 Core 2 | . . 5 Treads 1 | . 3 . Leg 14 | . 24 3 Wheel 11 | . . 23 Device 12 | . 14 10 Storage 15 | . 14 17 Energy Gun 6 | . 12 . Ballistic Gun 9 | . 12 6 Ballistic Cannon 7 | . . 14 Special Weapon 3 | . 2 4 Naked Turns . | . . . Heaviest Build 50 | 12 50 45 Greatest Support 60 | 20 20 60 Greatest Overweight (x) 2 | . 2 1 Average Overweight (x) . | . 1 . Largest Inventory Capacity 20 | 8 20 15 Average Capacity 15 | 7 17 15 Most Carried 20 | 6 20 15 Average Carried 14 | 3 14 14 Final Capacity 15 | 8 15 15 Final Carried 15 | 6 15 15 Class Distribution -------------------- 73% | Mutant 25% | Skirmisher Dominant Class ---------------- Mutant | -10/Materials Skirmisher | -10/Subcaves Resources | -11 -10 -10 ----------- Run | Yrd Mat Sub Matter Collected 960 | 127 557 276 Remotely . | . . . Salvage Created 725 | 144 371 210 Parts 47 | 13 14 20 Haulers Intercepted . | . . . Recyclers Shooed 2 | 1 1 . Parts Field Recycled . | . . . Retrieved Matter . | . . . Parts Self-Destructed . | . . . Prevented . | . . . Kills | -11 -10 -10 ------- Run | Yrd Mat Sub Combat Hostiles Destroyed 13 | . 4 9 Guns 7 | . 4 3 Cannons 6 | . . 6 Classes Destroyed 7 | 2 3 2 Worker 1 | . 1 . Tunneler 5 | 5 . . Recycler 3 | 1 2 . Watcher 1 | . 1 . Grunt 4 | . 4 . Artisan 1 | . . 1 Subdweller 9 | . . 9 Best Kill Streak 5 | 5 3 3 Combat Bots Only 3 | . 2 3 Max Kills in Single Turn 2 | 2 1 2 Gunslinging . | . . . Exploded . | . . . Melee . | . . . Uniques/NPCs Destroyed . | . . . Combat | -11 -10 -10 -------- Run | Yrd Mat Sub Hostile Shots Fired 134 | . 43 91 Missed 40 | . 11 29 Damage Taken 1416 | . 300 1116 Core 259 | . 46 213 Absorbed by Shields . | . . . Ignored by Resistances 404 | . 93 311 Core Remaining (%) 100 | 100 . . Volleys Fired 129 | 13 38 78 Largest 3 | 2 2 3 Hottest 128 | 90 70 128 Shots Fired 216 | 26 65 125 Gun 130 | 26 65 39 Cannon 51 | . . 51 Launcher 5 | . . 5 Special 30 | . . 30 Kinetic 128 | . 38 90 Thermal 83 | 26 27 30 Explosive 5 | . . 5 Electromagnetic . | . . . Robot Hit Streak 21 | 7 17 21 Robot Miss Streak 3 | 1 3 2 Penetration Max . | . . . Secondary Targets 1 | . 1 . Max Gunslinging Chain 1 | . 1 . Shots Hit Robots 141 | 19 50 72 Core Hits 42 | 7 15 20 Critical Kills 2 | . . 2 Critical Parts Destroyed . | . . . Critical Strikes 11 | 1 4 6 Burn 6 | 1 4 1 Destroy 4 | . . 4 Blast 1 | . . 1 Melee Attacks . | . . . Impact . | . . . Slashing . | . . . Piercing . | . . . Sneak Attacks . | . . . Combat Hostiles . | . . . Follow-up Attacks . | . . . Damage Inflicted 2371 | 237 629 1505 Guns 1296 | 237 629 430 Cannons 817 | . . 817 Explosions 141 | . . 141 Melee . | . . . Ramming 1 | . . 1 Kinetic 1571 | . 324 1247 Thermal 658 | 237 305 116 Explosive 141 | . . 141 Electromagnetic . | . . . Impact . | . . . Slashing . | . . . Piercing . | . . . Highest Corruption . | . . . Average Corruption . | . . . Corruption Purged . | . . . Corruption Blocked . | . . . Overload Shots . | . . . Overflow Damage 9 | . . 9 Projectiles . | . . . Explosions 9 | . . 9 Melee . | . . . Knockbacks 5 | . . 5 Impact . | . . . Kinetic 5 | . . 5 Secondary . | . . . Self-Inflicted Damage 16 | . . 16 Shots 1 | . . 1 Rammed 1 | . . 1 Targets Rammed 1 | . . 1 Kicked . | . . . Crushed . | . . . Highest Temperature 253 | 120 142 253 Average Temperature 53 | 48 63 26 Received Heat Transfer 715 | . 237 478 Siege Activations . | . . . Robots Corrupted . | . . . Combat Hostiles . | . . . Parts Fried . | . . . Impact Corruptions . | . . . Robots Melted . | . . . Combat Hostiles . | . . . Parts Melted 7 | 3 3 1 Heat Transferred 2386 | 682 1184 520 Parts Sabotaged . | . . . Parts Stolen . | . . . Parts Stripped . | . . . Power Chain Reactions . | . . . Alert | -11 -10 -10 ------- Run | Yrd Mat Sub Peak Influence 68 | 30 68 . Initial 16 | . 16 . Average 20 | 15 20 . Maximum Alert Level . | . . . Low Security (%) 100 | 100 100 . Level 1 . | . . . Level 2 . | . . . Level 3 . | . . . Level 4 . | . . . Level 5 . | . . . High Security . | . . . Max Security . | . . . Squads Dispatched . | . . . Investigation . | . . . Extermination . | . . . Reinforcement . | . . . Assault . | . . . Garrison . | . . . Intercept . | . . . Searches Triggered . | . . . Construction Impeded . | . . . Haulers Reinforced . | . . . Active Scanning Responses . | . . . Cargo Convoy Interrupts . | . . . Stealth | -11 -10 -10 --------- Run | Yrd Mat Sub Distress Signals . | . . . Communications Jammed . | . . . Distress Signals . | . . . Times Spotted 26 | . 7 19 Peak Tracking Total 6 | . 2 6 Tactical Retreats . | . . . Traps | -11 -10 -10 ------- Run | Yrd Mat Sub Traps Triggered . | . . . Indirectly . | . . . Trap Hack Attempts . | . . . Triggered . | . . . Disarmed . | . . . Reprogrammed . | . . . Reused . | . . . Traps Extracted . | . . . Installed . | . . . Triggered . | . . . Most Traps Carried 1 | . . 1 Machines | -11 -10 -10 ---------- Run | Yrd Mat Sub Machines Disabled . | . . . Max in Single Turn . | . . . Machines Repaired . | . . . Machines Dismantled . | . . . Machines Sabotaged . | . . . Overloaded Fab Kills . | . . . Hacking | -11 -10 -10 --------- Run | Yrd Mat Sub Machines Accessed 2 | . 2 . Terminals 2 | . 2 . Fabricators . | . . . Repair Stations . | . . . Recycling Units . | . . . Scanalyzers . | . . . Garrison Access . | . . . Total Hacks 5 | . 5 . Successful 2 | . 2 . Failed 3 | . 3 . Catastrophic . | . . . Database Lockouts . | . . . Manual 4 | . 4 . Terminals 5 | . 5 . Fabricators . | . . . Repair Stations . | . . . Recycling Units . | . . . Scanalyzers . | . . . Garrison Access . | . . . Terminal Hacks 2 | . 2 . Fabricator Index 1 | . 1 . Hauler Manifests 1 | . 1 . Fabricator Hacks . | . . . Repair Station Hacks . | . . . Recycling Unit Hacks . | . . . Scanalyzer . | . . . Garrison Access Hacks . | . . . Unauthorized Hacks . | . . . Terminals . | . . . Fabricators . | . . . Repair Stations . | . . . Recycling Units . | . . . Scanalyzers . | . . . Garrison Access . | . . . Data Cores Recovered . | . . . Used . | . . . Hacking Detections 1 | . 1 . Full Trace Events . | . . . Feedback Events . | . . . Feedback Blocked . | . . . Robot Schematics Acquired . | . . . Robots Built . | . . . Authchips . | . . . Time . | . . . Total Robot Build Rating . | . . . Part Schematics Acquired . | . . . Parts Built . | . . . Authchips . | . . . Time . | . . . Total Part Build Rating . | . . . Parts Repaired . | . . . Time . | . . . Parts Recycled . | . . . Recycled Matter . | . . . Retrieved Matter . | . . . Retrieved Components . | . . . Parts Scanalyzed . | . . . Part Schematics Acquired . | . . . Parts Damaged . | . . . Bothacking | -11 -10 -10 ------------ Run | Yrd Mat Sub Used RIF Installer . | . . . Robots Hacked . | . . . Non-combat . | . . . Combat . | . . . Robot Hacks Applied . | . . . Relay Couplers Released . | . . . Fabnet Peak Effective % . | . . . Robots Rewired . | . . . Allies Hacked . | . . . Hacks Repelled . | . . . Allies | -11 -10 -10 -------- Run | Yrd Mat Sub Total Allies . | . . . Largest Group . | . . . Highest-Rated Group . | . . . Highest-Rated Ally . | . . . Total Orders . | . . . Ally Attacks . | . . . Total Damage . | . . . Kills . | . . . Allies Corrupted . | . . . Allies Melted . | . . . Intel | -11 -10 -10 ------- Run | Yrd Mat Sub Robot Analysis Total . | . . . Derelict Logs Recovered . | . . . Drone Launches . | . . . Drone Recoveries . | . . . Exploration | -11 -10 -10 ------------- Run | Yrd Mat Sub Turns Passed 2054 | 122 980 952 Spaces Moved 968 | 54 374 540 Core 4 | 4 . . Treads 71 | . 71 . Legs 398 | 50 303 45 Wheels 495 | . . 495 Hover . | . . . Flight . | . . . Fastest Speed 50 | 50 120 110 Average Speed 157 | 114 219 119 Slowest Speed 320 | 120 320 190 Overloaded Moves . | . . . Propulsion Burnouts . | . . . Robots Hopped . | . . . Cave-ins Triggered . | . . . Exploration Rate (%) 26 | 4 40 35 Regions Visited 2 Branch Regions 1 Pre-discovered Areas . | . . . Known Exits Taken . | . . . Unknown Exits Taken 2 | 1 1 . Scrap Searched 6 | . . 6 Spaces Dug . | . . . Terrain Destroyed 29 | . . 29 Melee . | . . . Projectile 1 | . . 1 AOE 28 | . . 28 Terrain Rammed . | . . . Walls Destroyed . | . . . Machines Disabled . | . . . Actions | -11 -10 -10 --------- Run | Yrd Mat Sub Total 1244 | 87 473 684 Wait 1 | . 1 . Move 966 | 53 373 540 Hop . | . . . Pick Up 72 | 13 38 21 Fast Attach . | . . . Attach 23 | 7 7 9 Detach . | . . . Swap 23 | 1 3 19 Drop 29 | . 13 16 Fire 129 | 13 38 78 Melee . | . . . Ram 1 | . . 1 Kick . | . . . Crush . | . . . Escape Stasis . | . . . Rewire . | . . . Trap . | . . . Miscellaneous . | . . . Route ------- -11/Scrapyard -10/Materials (discovered 2 exits: [*Min] / [*Sub]) -10/Subcaves History --------- Turn | Location | Event 9 | -11/Scrapyard | Discovered new exit (range 16) 123 | -11/Scrapyard | Entered Materials 312 | -10/Materials | Build established: Mutant 883 | -10/Materials | Discovered new exit (range 12) 1084 | -10/Materials | Discovered new exit (range 11) 1103 | -10/Materials | Entered Subcaves 1105 | -10/Subcaves | A swath of the cavern ceiling suddenly collapsed 1248 | -10/Subcaves | Ambushed by swarm of Subdwellers 1301 | -10/Subcaves | Lost 3 parts (1n1u1w) 1314 | -10/Subcaves | Shifting Twisted Machinery released Slug Cannon 1360 | -10/Subcaves | Shifting Twisted Machinery released Battle Rifle 1434 | -10/Subcaves | A Subdweller sparked back to life 1434 | -10/Subcaves | A Subdweller sparked back to life 1434 | -10/Subcaves | A Subdweller sparked back to life 1492 | -10/Subcaves | Found Prototype Power Core 1493 | -10/Subcaves | Identified Meta Core 1495 | -10/Subcaves | Attached Meta Core, gained temporary slots: Propulsion, Utility, Weapon 1572 | -10/Subcaves | Core integrity fell below 50% 1621 | -10/Subcaves | Shifting Twisted Machinery released Scrap Shield 1626 | -10/Subcaves | Shifting Twisted Machinery released Piercing Trap 1770 | -10/Subcaves | Ambushed by angry Subdweller bent on revenge 1803 | -10/Subcaves | Build established: Skirmisher 1834 | -10/Subcaves | A swath of the cavern ceiling suddenly collapsed 2047 | -10/Subcaves | Core integrity fell below 20% 2055 | -10/Subcaves | Destroyed by ZT-ISB(R) with Subdweller Beam Cannon Last Messages --------------- 02028_ Slammed into ZT-ISB(R). 02028_ Lgt. Cannon destroyed. 02029_ Temporary Weapon slot lost. 02032_ Acquired 1 matter. 02033_ Acquired 4 matter. 02037_ Subatomizers dissect the Disposable Heat Sink. 02040_ Acquired 2 matter. 02041_ Acquired 11 matter. 02044_ Acquired 4 matter. 02045_ Acquired 17 matter. 02048_ UA-W97(R) suffers critical hit (Burn). 02048_ UA-W97(R) overheating. 02049_ UA-W97(R) heat damages Sub. Optics. 02052_ ZT-ISB(R) affixes Scrap Shield Fragment to Scrap Shield. 02053_ 4H-QUG(R) affixes Scrap Shield Fragment to Scrap Shield. 02053_ Critical hit (Meltdown: +220). 02055_ Flamer destroyed. Map ----- +----------------------------------------------------+ | ????????????????????## # ### "" "# # | | ???????????????????## ## ####""!"" ### | | ???????????????????# ### ### """ "" # | | ???????????????????# ## "## """ " ## | | ???????????????????# " ###"" " ## | | ????#####??????###?# ######?## #"### ## | | ????# ###??## #?# ##??????## ##? ## | | ##### ##?# #?#### ######### ##??# # | | # ## ### ##????### ## # #??# ## | | # #### ##???????## ## " #?## # | | # #??### #?????????# ""## "##"# # # | | # #????# ##????????## " ###### # ## | | # #????# ## #?????????# " #??## | | # ##???# #### #?????????### ####?## # | | # ##### #?# #???????????####????# ### | | # ##?# #?????????###??????## ""##??# | | ####### ###??## ####?###?## #???#### ##????# | | ?????## ##???## #?# ### #### ## ##????# | | ????## ##?## #### # #[&% #?????## | | ?#### # ### #?# " !%& ##???????? | | ## ### ## #?# """ "" &* ##????????? | | #&[# #" ###?## " # """" ##?????????? | | ##[& ##??### # ## ##" ##??????????? | | # &"##" ##??# # !R !######"#???????????? | | ## ## ##### &R%!&&%##??#"""??????????? | | ?####### R @ & *=#??#"""??????????? | | ???# # # # # * ;### ??????????? | | ???## ## # " ## #??##??????????? | | ???## # ## ## ######## #?????????????? | | ???# ##### #?????# # #????????????? | | ???# [ #?## % ##?????# ## #???????????? | | ???# | #### ##????## ##? #?????????? | | ???## ##" ####????#"# ###??? ##?????????? | | ????# ## #??????#""# #??????##??????????? | | ????# ! ## ##?????#"""# ##??????????????????? | | ????# #????""""# ##???????????????????? | | ????### ## #""""# #?????????????????????? | | ??????# ## #"" "# #?????????????????????? | | ??????## ### ##"# "" #?????????????????????? | | ???????## ##?# ""#### "# #????????????????????? | | ????????###??# "###??"##??????????????????????? | | ?????????????## # ###""##?????????????????????? | | ?????????????## #""""""#?????????????????????? | | ????????????## "#"""#??????????????????????? | | ????????????# #""#???????????????????????? | | ???????????# #### "#???????????????????????? | | ???????????# ##??## #???????????????????????? | | ???????????####?????## #??????????????????????? | | ?????????????????????######??????????????????????? | | ?????????????????????????????????????????????????? | +----------------------------------------------------+ Best States ------------- Heat Dissipation 25 Energy Generation 17 Energy Capacity 250 Matter Stores 300 Matter Capacity 500 Sight Range 21 Terrain Scan Range 16 Terrain Scan Density 10 Resistance: KI 20 Resistance: TH 20 Resistance: EX 20 Resistance: EM 20 Resistance: I 20 Resistance: S 20 Resistance: P 20 Evasion (%) 55 Recoil Reduction 1 Offensive Hacking 10 Item Schematics ----------------- None Robot Schematics ------------------ None Fabricated ------------ Nothing Alien Tech Used ----------------- None Achievements -------------- None Challenges ------------ None Game ------ Seed TacticalServoBuckler Manual? 0 Play Time 00:30:49 Cumulative 41.8 hours Start 2024.04.04 @ 21:40:07 End 2024.04.04 @ 22:13:30 Sessions 1 Manual Loads 0 Difficulty Adventurer Special Mode None Game No. 13 Rogue 0 Adventurer 13 Explorer 0 Win Type - Total 1 Types 1/0/0/0/0/0/0/0/0 Lore% 9 Gallery% 32 Achievement% 24 Wizard Run 0 Options --------- Layout 2 ASCII 0 Keyboard 0 Movement Mouse Keybinds 0 Fullscreen 1 Font 24/Smallcaps Map View 25x24 Zoom Use 87% Tactical HUD 1 Map Filters NONE Filters NONE Steam 1 RUN: 564a4545-f203-47af-9603-7b742ca2617a